bitfinex-derivatives/quotes_SOLF0:USTF0_20260312
["timestamp","ask_amount","ask_price","bid_price","bid_amount"]
[1773337107165,10.354,86.902,86.861,11.4147818]
[1773337107468,9.108804,86.92,86.861,11.4147818]
[1773337107669,10.353,86.91,86.861,11.4147818]
[1773337108563,9.108804,86.9,86.831,11.37962136]
[1773337109371,9.108804,86.9,86.833,11.37918291]
[1773337109976,10.358,86.87,86.833,11.37918291]
[1773337110267,9.108804,86.9,86.833,11.37918291]
[1773337110468,10.358,86.872,86.833,11.37918291]
[1773337111369,10.357,86.881,86.833,11.37918291]
[1773337112467,10.357,86.881,86.834,10.362]
[1773337112673,10.356,86.89,86.835,11.37870534]
[1773337113270,10.357,86.883,86.84,11.5171614]
[1773337114170,36.26,86.911,86.795,489.51958544]
[1773337114171,9.108804,86.88,86.825,11.5171614]
[1773337115175,10.36,86.858,86.825,11.5171614]
[1773337116274,10.36,86.858,86.796,11.5167333]
[1773337116478,10.361,86.85,86.8,11.5167333]
[1773337117069,10.361,86.85,86.799,10.367]
[1773337117070,9.108804,86.86,86.803,11.5167333]
[1773337117673,10.36,86.856,86.808,11.5947048]
[1773337117978,9.108804,86.86,86.808,11.5947048]
[1773337118176,9.108804,86.88,86.808,11.5947048]
[1773337118377,9.108804,86.88,86.818,11.5947048]
[1773337119376,9.108804,86.88,86.819,11.58010716]
[1773337119579,3.39364204,86.86,86.819,11.58010716]
[1773337121572,3.39364204,86.84,86.797,11.57001079]
[1773337122972,3.39364204,86.84,86.805,11.57001079]
[1773337125274,3.39364204,86.83,86.797,11.67158076]
[1773337125577,3.39364204,86.84,86.797,11.67158076]
[1773337125980,36.26,86.885,86.795,489.51958544]
[1773337125981,3.39364204,86.85,86.808,11.67158076]
[1773337126282,3.39364204,86.86,86.808,11.67158076]
[1773337126479,3.39364204,86.87,86.825,11.67158076]
[1773337126676,3.39364204,86.85,86.825,11.67158076]
[1773337126980,3.39364204,86.85,86.81,11.67158076]
[1773337128477,3.39364204,86.84,86.81,11.67158076]
[1773337128883,3.39364204,86.85,86.81,11.67158076]
[1773337129481,3.39364204,86.86,86.81,11.67158076]
[1773337129779,3.39364204,86.86,86.811,11.7041614]
[1773337129982,3.39364204,86.86,86.821,0.07267701]
[1773337130985,10.36,86.857,86.821,0.07267701]
[1773337131781,3.39364204,86.85,86.821,0.07267701]
[1773337132083,3.39364204,86.84,86.821,0.07267701]
[1773337132383,3.39364204,86.84,86.796,11.70416299]
[1773337132583,10.363,86.833,86.796,11.70416299]
[1773337132978,3.39364204,86.84,86.796,11.70416299]
[1773337133683,3.39364204,86.85,86.796,11.70416299]
[1773337133887,10.362,86.839,86.803,10.366]
[1773337136988,10.361,86.846,86.808,10.366]
[1773337137188,10.361,86.846,86.804,11.702924]
[1773337137388,3.39364204,86.85,86.804,11.702924]
[1773337137580,3.39525383,86.85,86.804,11.702924]
[1773337138987,10.362,86.84,86.804,11.702924]
[1773337139682,10.361,86.846,86.806,10.366]
[1773337139888,3.39525383,86.85,86.806,11.7093858]
[1773337140490,3.39525383,86.85,86.788,44.24]
[1773337140491,3.39525383,86.84,86.793,11.7093858]
[1773337140691,3.39525383,86.83,86.788,44.24]
[1773337141792,3.39525383,86.8,86.753,46.06]
[1773337142094,3.39525383,86.8,86.753,11.70963943]
[1773337142490,10.367,86.798,86.753,11.70963943]
[1773337142694,3.39525383,86.79,86.75,46.08]
[1773337142892,10.368,86.789,86.75,46.08]
[1773337143086,20.725,86.835,86.739,11.70963943]
[1773337143087,3.39525383,86.78,86.739,11.70963943]
[1773337143290,3.39525383,86.77,86.728,46.32]
[1773337143494,20.728,86.823,86.729,11.86852383]
[1773337143798,20.728,86.823,86.672,21.44259936]
[1773337143799,3.39525383,86.8,86.751,11.86852383]
[1773337144896,13.76225383,86.8,86.751,11.86852383]
[1773337145194,13.76225383,86.8,86.755,11.86852383]
[1773337145794,10.367,86.8,86.755,11.86852383]
[1773337145993,13.76225383,86.8,86.755,11.86852383]
[1773337146400,10.368,86.793,86.755,11.86852383]
[1773337147501,3.39525383,86.8,86.756,10.372]
[1773337147699,3.39525383,86.8,86.756,22.35148899]
[1773337147900,3.39525383,86.8,86.757,11.97948899]
[1773337148294,3.39525383,86.81,86.76,3.39525383]
[1773337148492,3.39525383,86.81,86.761,11.97948899]
[1773337150796,10.366,86.808,86.763,10.371]
[1773337150995,10.366,86.808,86.763,22.36298259]
[1773337151605,10.366,86.801,86.763,11.99198259]
[1773337152303,10.366,86.809,86.763,11.99198259]
[1773337152496,3.39525383,86.81,86.763,11.99198259]
[1773337152698,10.366,86.809,86.763,11.99198259]
[1773337152896,3.39525383,86.81,86.763,11.99198259]
[1773337153905,10.366,86.802,86.763,11.99198259]
[1773337154200,3.39525383,86.82,86.771,11.92931349]
[1773337154501,3.39525383,86.83,86.771,11.92931349]
[1773337154714,3.39525383,86.86,86.801,11.92931349]
[1773337156008,10.361,86.849,86.802,11.92841284]
[1773337156203,3.39525383,86.85,86.802,11.92841284]
[1773337157012,3.39525383,86.86,86.802,11.92841284]
[1773337157309,3.39525383,86.87,86.821,11.9422745]
[1773337158112,10.359,86.86,86.821,11.9422745]
[1773337158708,13.75425383,86.86,86.821,11.9422745]
[1773337159905,3.39525383,86.86,86.821,11.9422745]
[1773337160103,10.359,86.868,86.821,11.9422745]
[1773337160304,3.39525383,86.87,86.821,11.9422745]
[1773337160815,3.39525383,86.86,86.811,11.94421053]
[1773337161009,3.39525383,86.87,86.811,11.94421053]
[1773337161211,3.39525383,86.86,86.811,11.94421053]
[1773337161611,10.36,86.852,86.812,11.94419152]
[1773337162221,0.07262051,86.841,86.812,11.94419152]
[1773337163722,0.07262051,86.841,86.777,11.99767604]
[1773337164018,3.39525383,86.84,86.792,10.368]
[1773337164220,3.39525383,86.84,86.793,11.99767604]
[1773337164924,3.39525383,86.86,86.811,11.99767604]
[1773337165622,10.362,86.841,86.8,3.39525383]
[1773337165822,3.39525383,86.85,86.801,12.01142341]
[1773337166117,3.39525383,86.84,86.786,12.01142341]
[1773337166517,10.363,86.829,86.787,10.368]
[1773337166822,10.363,86.829,86.788,12.01142341]
[1773337167423,3.39525383,86.82,86.788,12.01142341]
[1773337167621,10.364,86.822,86.788,12.01142341]
[1773337168320,10.363,86.829,86.788,12.01142341]
[1773337171528,10.362,86.837,86.79,12.03884462]
[1773337172229,10.361,86.845,86.801,12.03884462]
[1773337172432,3.39525383,86.83,86.79,12.03884462]
[1773337173124,10.364,86.824,86.79,12.03884462]
[1773337173326,3.39525383,86.85,86.791,12.03732631]
[1773337174531,3.39525383,86.84,86.791,12.03732631]
[1773337174928,3.39525383,86.84,86.738,34.63]
[1773337174929,3.39525383,86.85,86.8,3.39525383]
[1773337175129,3.39525383,86.85,86.801,12.03732631]
[1773337175432,3.39525383,86.86,86.811,12.03439206]
[1773337175833,31.32462423,86.898,86.81,3.39525383]
[1773337175834,3.39525383,86.87,86.812,12.03439206]
[1773337176824,10.359,86.866,86.812,12.03439206]
[1773337177026,10.359,86.866,86.821,12.03439206]
[1773337177324,3.39525383,86.87,86.821,12.03439206]
[1773337177725,10.359,86.863,86.821,12.03439206]
[1773337178731,10.36,86.856,86.821,12.03439206]
[1773337179727,3.39525383,86.85,86.806,11.92083942]
[1773337180135,11.67008529,86.879,86.806,11.92083942]
[1773337180323,3.39525383,86.88,86.821,11.92083942]
[1773337180526,3.39525383,86.87,86.821,11.92083942]
[1773337180729,10.36,86.856,86.821,11.92083942]
[1773337181728,10.361,86.847,86.804,22.28800731]
[1773337182339,10.362,86.84,86.804,11.92200731]
[1773337182735,13.75725383,86.84,86.804,11.92200731]
[1773337183333,10.363,86.834,86.804,11.92200731]
[1773337185536,10.363,86.834,86.763,47.0]
[1773337185537,10.363,86.827,86.781,11.89632764]
[1773337185738,3.39525383,86.82,86.781,11.89632764]
[1773337186339,3.39525383,86.83,86.79,11.89632764]
[1773337187340,3.39525383,86.83,86.77,3.39525383]
[1773337187341,10.363,86.834,86.793,11.89245293]
[1773337187734,20.718,86.865,86.793,11.89245293]
[1773337187735,10.363,86.828,86.793,11.89245293]
[1773337189435,13.75925383,86.82,86.778,11.90416054]
[1773337189640,0.07263145,86.819,86.778,11.90416054]
[1773337189841,3.39525383,86.81,86.778,11.90416054]
[1773337190945,10.364,86.818,86.778,11.90416054]
[1773337191642,0.07263145,86.819,86.779,10.369]
[1773337191842,0.07263145,86.819,86.781,11.90358228]
[1773337192344,3.39525383,86.83,86.781,11.90358228]
[1773337192838,3.39525383,86.83,86.784,11.90358228]
[1773337195147,3.39525383,86.84,86.788,11.90524219]
[1773337195341,3.39525383,86.84,86.791,11.90328002]
[1773337196638,10.362,86.839,86.8,11.90328002]
[1773337197542,3.39574397,86.84,86.801,10.366]
[1773337197943,3.39574397,86.84,86.802,11.9046115]
[1773337198344,3.39574397,86.83,86.802,11.9046115]
[1773337198543,3.39574397,86.81,86.772,26.13505718]
[1773337198743,3.39574397,86.81,86.772,11.9046115]
[1773337199547,3.39574397,86.82,86.778,10.369]
[1773337200342,3.39574397,86.84,86.782,11.90491389]
[1773337200741,10.363,86.83,86.786,10.368]
[1773337200939,3.39574397,86.82,86.787,11.90491389]
[1773337201145,3.39574397,86.8,86.761,14.23044568]
[1773337201340,13.76274397,86.8,86.757,11.90491389]
[1773337201847,10.367,86.8,86.757,11.90491389]
[1773337202051,13.76274397,86.8,86.757,11.90491389]
[1773337202344,3.39574397,86.81,86.761,11.93276002]
[1773337202547,3.39574397,86.79,86.746,11.93276002]
[1773337202752,3.39574397,86.78,86.752,10.372]
[1773337203046,3.39574397,86.79,86.752,10.372]
[1773337203247,13.76374397,86.79,86.746,11.93276002]
[1773337203443,3.39574397,86.8,86.746,11.93276002]
[1773337203640,3.39574397,86.8,86.751,12.01166054]
[1773337203946,10.367,86.798,86.759,10.371]
[1773337204146,3.39574397,86.8,86.751,12.01166054]
[1773337204343,20.728,86.826,86.751,12.01166054]
[1773337204344,3.39574397,86.79,86.751,22.38366054]
[1773337204551,3.39574397,86.79,86.751,12.01166054]
[1773337205445,10.366,86.807,86.764,12.01492712]
[1773337205850,3.39574397,86.8,86.748,12.01492712]
[1773337206251,10.367,86.799,86.748,12.01492712]
[1773337206446,3.39574397,86.79,86.751,12.01492712]
[1773337206841,20.728,86.823,86.751,12.01492712]
[1773337207045,3.39574397,86.79,86.731,12.01492712]
[1773337207947,10.369,86.782,86.743,22.41256351]
[1773337208147,3.39574397,86.79,86.744,12.03956351]
[1773337208349,3.39574397,86.8,86.751,12.03956351]
[1773337208847,10.368,86.791,86.751,12.03956351]
[1773337209051,3.39574397,86.8,86.751,12.03956351]
[1773337209254,3.39574397,86.79,86.751,12.03956351]
[1773337209852,10.368,86.789,86.751,12.03956351]
[1773337213155,3.39574397,86.8,86.74,3.39574397]
[1773337213351,10.369,86.783,86.74,3.39574397]
[1773337213753,13.76374397,86.79,86.748,10.373]
[1773337214447,10.368,86.79,86.748,10.373]
[1773337214652,10.369,86.784,86.742,12.13856216]
[1773337215559,10.369,86.784,86.743,10.373]
[1773337216351,3.39574397,86.79,86.748,10.373]
[1773337216558,3.39574397,86.79,86.744,12.13038612]
[1773337217858,10.369,86.783,86.744,12.13038612]
[1773337218060,3.39574397,86.8,86.751,12.1922089]
[1773337218961,10.368,86.791,86.751,12.1922089]
[1773337219764,10.367,86.798,86.751,12.1922089]
[1773337220158,3.39574397,86.8,86.751,12.1922089]
[1773337220361,10.368,86.792,86.751,12.1922089]
[1773337220665,10.61462423,86.842,86.725,46.4]
[1773337220666,10.61462423,86.842,86.761,12.19336456]
[1773337220863,10.61462423,86.842,86.725,46.4]
[1773337220864,3.39574397,86.83,86.78,3.39574397]
[1773337221161,3.39574397,86.84,86.79,15.58910853]
[1773337221565,10.363,86.832,86.791,12.19390132]
[1773337222266,3.39574397,86.83,86.775,12.19390132]
[1773337223458,10.365,86.818,86.775,12.19390132]
[1773337223667,3.39574397,86.81,86.761,12.15604452]
[1773337224869,3.39574397,86.81,86.762,12.15604452]
[1773337225974,3.39574397,86.81,86.766,22.52829873]
[1773337226268,3.39574397,86.81,86.767,12.15729873]
[1773337226971,10.61462423,86.855,86.753,46.38]
[1773337226972,3.39574397,86.8,86.753,12.15729873]
[1773337227473,3.39574397,86.79,86.753,12.15729873]
[1773337227873,3.39574397,86.79,86.731,12.03601426]
[1773337228173,3.39574397,86.79,86.746,10.373]
[1773337228369,3.39574397,86.81,86.751,12.03601426]
[1773337228971,10.367,86.798,86.751,12.03601426]
[1773337229170,3.39574397,86.8,86.751,12.03601426]
[1773337229776,10.367,86.797,86.753,12.01197902]
[1773337229977,3.39574397,86.8,86.753,12.01197902]
[1773337230573,10.366,86.806,86.757,12.01197902]
[1773337230873,3.39574397,86.81,86.757,12.01197902]
[1773337231977,10.366,86.809,86.763,12.01832191]
[1773337232375,3.39574397,86.83,86.771,12.01832191]
[1773337232671,3.39574397,86.84,86.791,12.01832191]
[1773337233074,20.716,86.873,86.791,12.01832191]
[1773337233075,10.363,86.827,86.791,12.01832191]
[1773337234575,10.364,86.819,86.771,12.01841156]
[1773337235371,10.364,86.819,86.778,12.01699843]
[1773337235981,10.363,86.827,86.785,12.01699843]
[1773337238179,3.39574397,86.83,86.785,12.01699843]
[1773337238180,10.364,86.82,86.785,12.01699843]
[1773337238372,13.75974397,86.82,86.785,12.01699843]
[1773337238881,3.39574397,86.81,86.771,12.10091484]
[1773337239178,3.39574397,86.8,86.751,12.10091484]
[1773337239970,3.39574397,86.79,86.752,10.372]
[1773337240280,3.39574397,86.79,86.753,12.1284684]
[1773337240480,10.367,86.797,86.755,22.5004684]
[1773337240675,3.39574397,86.79,86.755,12.1284684]
[1773337240880,3.39574397,86.78,86.744,12.1284684]
[1773337241074,3.39574397,86.78,86.745,10.373]
[1773337241279,3.39574397,86.79,86.746,12.12616722]
[1773337241984,3.39574397,86.8,86.746,12.12616722]
[1773337242576,10.367,86.796,86.753,12.12608265]
[1773337243681,10.366,86.804,86.756,12.1140893]
[1773337244175,10.367,86.797,86.756,12.1140893]
[1773337244782,10.367,86.797,86.758,12.1140893]
[1773337245185,10.366,86.804,86.758,12.1140893]
[1773337245385,3.39574397,86.81,86.759,10.371]
[1773337245587,3.39574397,86.81,86.76,12.11705045]
[1773337245886,10.366,86.805,86.768,12.11705045]
[1773337246781,10.365,86.813,86.771,12.11705045]
[1773337246984,10.365,86.813,86.733,46.7]
[1773337246985,10.68981712,86.848,86.781,12.11705045]
[1773337247181,3.39574397,86.85,86.791,12.11705045]
[1773337247375,10.363,86.835,86.792,12.11732314]
[1773337247580,3.39574397,86.85,86.792,12.11732314]
[1773337248988,10.362,86.842,86.796,12.11732314]
[1773337250385,10.361,86.851,86.801,12.13581156]
[1773337250981,3.39574397,86.85,86.791,12.13581156]
[1773337251184,3.39574397,86.84,86.791,12.13581156]
[1773337251781,10.362,86.837,86.791,12.13581156]
[1773337251981,3.39574397,86.83,86.78,3.39574397]
[1773337252188,3.39574397,86.83,86.772,12.14029475]
[1773337252586,3.39574397,86.82,86.772,12.14029475]
[1773337253992,3.39574397,86.83,86.773,12.13897827]
[1773337255991,10.364,86.825,86.776,12.13923811]
[1773337256800,10.365,86.818,86.776,12.13923811]
[1773337258701,10.365,86.812,86.776,12.13923811]
[1773337259802,10.366,86.805,86.776,12.13923811]
[1773337259995,3.39743166,86.82,86.776,12.13923811]
[1773337260195,3.39743166,86.83,86.776,12.13923811]
[1773337260403,3.39743166,86.83,86.781,12.14113402]
[1773337261001,10.364,86.821,86.781,12.14113402]
[1773337262697,10.363,86.828,86.781,12.14113402]
[1773337262903,10.68981712,86.86,86.81,3.39743166]
[1773337262904,3.39743166,86.86,86.81,3.39743166]
[1773337263103,3.39743166,86.88,86.821,12.14216716]
[1773337263603,10.36,86.852,86.821,12.14216716]
[1773337264504,10.361,86.846,86.81,3.39743166]
[1773337264804,10.361,86.846,86.81,15.53981469]
[1773337265201,10.361,86.846,86.811,12.13254336]
[1773337267101,3.39743166,86.85,86.811,12.13254336]
[1773337267298,3.39743166,86.86,86.811,12.13254336]
[1773337269103,10.361,86.847,86.811,12.13254336]
[1773337269803,10.361,86.847,86.808,10.366]
[1773337269804,340.09538484,86.87,86.813,12.13171764]
[1773337271002,10.359,86.861,86.816,10.365]
[1773337271201,3.39743166,86.86,86.817,12.13171764]
[1773337271598,10.361,86.847,86.817,12.13171764]
[1773337273107,3.39743166,86.85,86.803,12.13887015]
[1773337275004,10.361,86.847,86.804,10.366]
[1773337275204,10.361,86.847,86.805,12.13865935]
[1773337275700,13.75943166,86.84,86.805,12.13865935]
[1773337275902,10.362,86.84,86.805,12.13865935]
[1773337276802,3.39743166,86.86,86.805,12.13865935]
[1773337276999,10.68981712,86.903,86.82,3.39743166]
[1773337277203,3.39743166,86.9,86.851,12.13482119]
[1773337277602,3.39743166,86.89,86.851,12.13482119]
[1773337277807,13.75343166,86.89,86.851,12.13482119]
[1773337279008,3.39743166,86.92,86.861,12.13482119]
[1773337279201,3.39743166,86.92,86.871,12.13482119]
[1773337279507,10.354,86.907,86.871,12.13482119]
[1773337280407,10.353,86.915,86.871,12.13482119]
[1773337280809,10.354,86.908,86.871,12.13482119]
[1773337281010,3.39743166,86.91,86.871,12.13482119]
[1773337281509,10.354,86.909,86.871,12.13482119]
[1773337282504,3.39743166,86.9,86.857,12.13143657]
[1773337283105,10.354,86.902,86.857,12.13143657]
[1773337283408,3.39743166,86.91,86.857,12.13143657]
[1773337283608,10.355,86.901,86.857,12.13143657]
[1773337284908,10.355,86.901,86.859,12.11681633]
[1773337285501,3.39743166,86.91,86.864,6.94394128]
[1773337285700,36.28,86.936,86.864,6.94394128]
[1773337285701,3.39743166,86.92,86.864,6.94394128]
[1773337286111,3.39743166,86.91,86.864,6.94394128]
[1773337286704,10.354,86.903,86.864,6.94394128]
[1773337288910,3.39743166,86.9,86.864,6.94394128]
[1773337290712,10.354,86.903,86.864,6.94394128]
[1773337292214,10.355,86.897,86.864,6.94394128]
[1773337292603,3.39743166,86.9,86.864,6.94394128]
[1773337293416,3.39743166,86.91,86.864,6.94394128]
[1773337293617,10.355,86.898,86.864,6.94394128]
[1773337294813,10.356,86.892,86.864,6.94394128]
[1773337295015,3.39743166,86.9,86.864,6.94394128]
[1773337295717,3.39743166,86.88,86.832,6.93342424]
[1773337296212,3.39743166,86.86,86.832,6.93342424]
[1773337296812,3.39743166,86.84,86.802,6.93342424]
[1773337297117,3.39743166,86.83,86.802,6.93342424]
[1773337297412,36.26,86.869,86.802,6.93342424]
[1773337297611,3.39743166,86.84,86.802,6.93342424]
[1773337297819,10.36,86.859,86.805,6.84463469]
[1773337298019,3.39743166,86.86,86.805,6.84463469]
[1773337298216,3.39743166,86.85,86.805,6.84463469]
[1773337299323,3.39743166,86.84,86.805,6.84463469]
[1773337299614,3.39743166,86.85,86.805,6.84463469]
[1773337300923,10.361,86.849,86.805,6.84463469]
[1773337301623,3.39743166,86.84,86.805,6.84463469]
[1773337302123,10.361,86.849,86.805,6.84463469]
[1773337302524,3.39743166,86.85,86.805,6.84463469]
[1773337302725,10.36,86.857,86.805,6.84463469]
[1773337303226,3.39743166,86.85,86.805,6.84463469]
[1773337303422,13.75843166,86.85,86.807,6.97903876]
[1773337304326,13.75843166,86.85,86.808,10.366]
[1773337304632,3.39743166,86.87,86.811,6.97903876]
[1773337304925,13.75643166,86.86,86.814,6.97903876]
[1773337305932,13.75643166,86.86,86.817,6.97935437]
[1773337306937,10.359,86.86,86.819,6.97935437]
[1773337307234,10.359,86.867,86.819,6.97935437]
[1773337307434,3.39743166,86.88,86.831,7.02233153]
[1773337308736,10.357,86.877,86.833,7.02233153]
[1773337309035,36.26,86.91,86.79,45.62]
[1773337309036,3.39743166,86.87,86.821,7.02233153]
[1773337309843,3.39743166,86.86,86.811,7.01184442]
[1773337310134,3.39743166,86.87,86.811,7.01184442]
[1773337310728,10.359,86.863,86.819,7.01184442]
[1773337311637,3.39743166,86.86,86.819,7.01184442]
[1773337311840,3.39743166,86.86,86.822,6.99416628]
[1773337312639,10.36,86.858,86.822,6.99416628]
[1773337313942,0.07262512,86.849,86.822,6.99416628]
[1773337314343,20.709,86.905,86.822,6.99416628]
[1773337314344,3.39743166,86.88,86.822,6.99416628]
[1773337314542,3.39743166,86.88,86.831,6.95791804]
[1773337315841,3.39743166,86.87,86.831,6.95791804]
[1773337316041,3.39743166,86.85,86.811,6.95664989]
[1773337316438,10.361,86.849,86.811,6.95664989]
[1773337316639,10.361,86.849,86.764,21.47057648]
[1773337316640,3.39743166,86.84,86.795,6.95664989]
[1773337317940,13.76043166,86.83,86.795,6.95664989]
[1773337318138,3.39743166,86.83,86.795,6.95664989]
[1773337318339,36.26,86.889,86.801,6.93997441]
[1773337318538,3.39743166,86.85,86.801,6.93997441]
[1773337318734,3.39743166,86.86,86.801,6.93997441]
[1773337319045,13.75843166,86.85,86.804,6.93997441]
[1773337319343,13.75843166,86.85,86.822,0.07310843]
[1773337319543,13.75622651,86.85,86.822,0.07310843]
[1773337320552,3.39522651,86.84,86.822,0.07310843]
[1773337320849,3.39522651,86.83,86.79,6.94003841]
[1773337321045,3.39522651,86.82,86.79,6.94003841]
[1773337321445,3.39522651,86.82,86.762,14.31336767]
[1773337321446,10.68981712,86.874,86.771,6.93956411]
[1773337321642,3.39522651,86.8,86.756,496.05537828]
[1773337321948,3.39522651,86.8,86.757,6.93956411]
[1773337322248,3.39522651,86.81,86.76,3.39522651]
[1773337322449,3.39522651,86.83,86.771,6.93956411]
[1773337323045,10.364,86.825,86.775,6.93956411]
[1773337323442,10.364,86.825,86.779,6.98370829]
[1773337323643,10.363,86.834,86.781,6.98370829]
[1773337324147,3.39522651,86.85,86.8,3.39522651]
[1773337324348,3.39522651,86.86,86.801,6.98370829]
[1773337324652,10.361,86.848,86.801,6.98370829]
[1773337324952,3.39522651,86.84,86.801,6.98370829]
[1773337325351,3.39522651,86.85,86.801,6.98370829]
[1773337326445,10.362,86.84,86.801,6.98370829]
[1773337327351,3.39522651,86.84,86.801,6.98370829]
[1773337327552,10.361,86.848,86.801,6.98370829]
[1773337328549,10.362,86.841,86.801,6.98370829]
[1773337328753,0.07279504,86.833,86.801,6.98370829]
[1773337331648,10.363,86.832,86.79,10.368]
[1773337331848,0.07279504,86.833,86.791,6.97542643]
[1773337332558,0.07279504,86.833,86.793,6.97542643]
[1773337333354,0.07279504,86.833,86.794,10.367]
[1773337333656,3.39522651,86.83,86.778,6.97540014]
[1773337334152,3.39522651,86.83,86.77,3.39522651]
[1773337334153,10.364,86.821,86.781,6.97540014]
[1773337334351,3.39522651,86.82,86.781,6.97540014]
[1773337334859,10.365,86.818,86.781,6.97540014]
[1773337335154,3.39522651,86.82,86.781,6.97540014]
[1773337336249,10.365,86.812,86.781,6.97540014]
[1773337336956,10.364,86.819,86.781,6.97540014]
[1773337338147,0.07311869,86.809,86.781,6.97540014]
[1773337340657,0.07311869,86.809,86.782,17.35022797]
[1773337341050,3.39522651,86.82,86.782,6.98122797]
[1773337341253,10.364,86.82,86.782,6.98122797]
[1773337341553,3.39522651,86.83,86.782,6.98122797]
[1773337341754,10.365,86.814,86.782,6.98122797]
[1773337341952,3.39522651,86.83,86.782,6.98122797]
[1773337342955,10.364,86.821,86.782,6.98122797]
[1773337343756,10.364,86.818,86.782,6.98122797]
[1773337345049,10.364,86.825,86.784,6.98310354]
[1773337345457,10.361,86.844,86.801,6.98335535]
[1773337348761,10.362,86.838,86.801,6.98335535]
[1773337350861,10.363,86.831,86.801,6.98335535]
[1773337351059,3.39522651,86.85,86.801,6.98335535]
[1773337351763,10.362,86.838,86.801,6.98335535]
[1773337352759,10.362,86.838,86.772,45.8]
[1773337352760,10.363,86.832,86.79,3.39522651]
[1773337353065,341.32810135,86.874,86.785,7.00439323]
[1773337353066,3.39522651,86.83,86.785,7.00439323]
[1773337353967,10.363,86.827,86.785,7.00439323]
[1773337355156,10.363,86.827,86.787,10.368]
[1773337355965,0.07335993,86.816,86.787,10.368]
[1773337356661,0.07335993,86.816,86.792,6.99608295]
[1773337357266,0.07335993,86.816,86.786,10.368]
[1773337357563,31.40881712,86.864,86.757,21.47057648]
[1773337357564,3.39522651,86.84,86.791,6.95789927]
[1773337357865,3.39522651,86.84,86.769,14.31336767]
[1773337357866,3.39522651,86.85,86.801,6.95789927]
[1773337359565,10.362,86.838,86.801,6.95789927]
[1773337359767,3.39522651,86.86,86.801,6.95789927]
[1773337360560,3.39522651,86.86,86.8,3.39522651]
[1773337360561,10.361,86.847,86.803,6.95790576]
[1773337362361,13.75722651,86.84,86.803,6.95790576]
[1773337362565,3.39522651,86.83,86.787,6.95817229]
[1773337363962,10.7464632,86.866,86.791,6.95279463]
[1773337364169,10.362,86.838,86.793,6.95279463]
[1773337365167,10.363,86.832,86.793,6.95279463]
[1773337367169,10.363,86.829,86.793,6.95279463]
[1773337371674,10.363,86.829,86.802,0.07357126]
[1773337372774,3.39522651,86.83,86.802,0.07357126]
[1773337373771,10.364,86.823,86.802,0.07357126]
[1773337375170,3.39522651,86.81,86.763,6.96493816]
[1773337376882,10.366,86.807,86.766,6.96527097]
[1773337377779,3.39522651,86.8,86.766,6.96527097]
[1773337378280,3.39522651,86.81,86.766,6.96527097]
[1773337378476,10.366,86.808,86.766,6.96527097]
[1773337378684,3.39522651,86.79,86.754,6.94749892]
[1773337380191,0.07270868,86.796,86.761,6.9467774]
[1773337380789,3.39522651,86.81,86.761,6.9467774]
[1773337381090,10.366,86.803,86.761,6.9467774]
[1773337381994,0.07299526,86.791,86.761,6.9467774]
[1773337382592,3.39859142,86.79,86.761,6.9467774]
[1773337382795,3.39859142,86.79,86.746,6.92435599]
[1773337384391,3.39859142,86.78,86.732,6.91131954]
[1773337384789,3.39859142,86.77,86.732,6.91131954]
[1773337385392,3.39859142,86.76,86.711,6.90496742]
[1773337385597,3.39859142,86.75,86.711,6.90496742]
[1773337385891,3.39859142,86.73,86.696,6.90496742]
[1773337386288,10.374,86.739,86.696,6.90496742]
[1773337388094,20.737,86.788,86.696,6.90496742]
[1773337388095,0.07317674,86.726,86.696,6.90496742]
[1773337388397,3.39859142,86.76,86.701,6.91107372]
[1773337388596,3.39859142,86.76,86.711,6.91107372]
[1773337389096,10.371,86.767,86.712,6.91107372]
[1773337389691,13.76959142,86.76,86.712,6.91107372]
[1773337390597,13.76959142,86.76,86.727,0.07329118]
[1773337390891,3.39859142,86.76,86.727,0.07329118]
[1773337391895,13.76959142,86.76,86.727,0.07329118]
[1773337392092,3.39859142,86.76,86.727,0.07329118]
[1773337395200,3.39859142,86.75,86.727,0.07329118]
[1773337395700,3.39859142,86.74,86.697,6.91403916]
[1773337395895,3.39859142,86.75,86.7,6.95068475]
[1773337396498,10.373,86.747,86.7,6.95068475]
[1773337397292,10.372,86.755,86.702,6.95001728]
[1773337397597,3.39859142,86.78,86.721,6.95001728]